fUST/lending_fUST_20240505
["ID","MTS","AMOUNT","RATE_DAILY","PERIOD"]
[325418060,1714857031997,-165.9957168,0.00021636,2]
[325418061,1714857032006,-150.0,0.00021675,2]
[325418063,1714857032015,-186.131287,0.00021694,2]
[325418064,1714857032026,-167.50457,0.00021694,2]
[325418065,1714857032035,-186.131287,0.00021694,2]
[325418066,1714857032044,-167.50457,0.00021694,2]
[325418067,1714857032053,-186.131287,0.00021694,2]
[325418068,1714857032062,-167.50457,0.00021694,2]
[325418069,1714857032072,-186.131287,0.00021694,2]
[325418070,1714857032082,-28.22949388,0.00021694,2]
[325418071,1714857032092,-139.27507612,0.00021694,2]
[325418072,1714857032102,-167.504569,0.00021694,2]
[325418073,1714857032111,-186.131287,0.00021694,2]
[325418074,1714857032120,-151.0,0.000217,2]
[325418075,1714857032130,-263.53848801,0.00021705,2]
[325418076,1714857032147,-229.46151199,0.00021705,2]
[325418077,1714857032158,-637.75143328,0.0002189,2]
[325418078,1714857032167,-202.98071778,0.00021908,2]
[325418079,1714857032177,-1000.0,0.00021916,2]
[325418080,1714857032186,-2833.23104791,0.00021918,2]
[325418081,1714857032232,449.85342642,0.00019178,2]
[325418082,1714857032633,500.0,0.00019178,2]
[325418083,1714857032683,500.0,0.00019178,2]
[325418084,1714857032714,500.0,0.00019178,2]
[325418085,1714857032758,578.93351075,0.00019178,2]
[325418086,1714857032788,500.0,0.00019178,2]
[325418087,1714857032837,335.77047312,0.00019178,2]
[325418088,1714857033130,650.65874791,0.00019178,2]
[325418116,1714857037838,-193.97227624,0.00020372,2]
[325418117,1714857037848,-7166.76895209,0.00021918,2]
[325418118,1714857037858,-166.666666,0.00021918,2]
[325418119,1714857037867,-637.75143324,0.00021974,2]
[325418120,1714857037877,-404.36,0.0002199,3]
[325418121,1714857037886,-186.4501491,0.00021998,2]
[325418122,1714857037895,-1026.7620254,0.00021999,2]
[325418123,1714857037905,-1000.0,0.00021999,2]
[325418125,1714857037914,-259.21014086,0.00021999,2]
[325418127,1714857037923,-11035.00001821,0.00022,2]
[325418192,1714857042950,-302.74440794,0.00022,2]
[325418193,1714857042961,-18300.63182759,0.00022,2]
[325418194,1714857042971,-4679.21562366,0.00022,2]
[325418195,1714857043065,-320.78437634,0.00022,2]
[325418197,1714857043075,-160.0,0.00022,2]
[325418199,1714857043084,-151.0,0.00022,2]
[325418200,1714857043094,-151.0,0.00022,2]
[325418201,1714857043103,-151.0,0.00022,2]
[325418202,1714857043112,-159.34994831,0.00022,2]
[325418203,1714857043122,-637.75143324,0.00022058,2]
[325418204,1714857043131,-151.0,0.00022059,2]
[325418205,1714857043140,-151.0,0.00022059,2]
[325418206,1714857043152,-151.0,0.00022059,2]
[325418207,1714857043162,-151.0,0.00022059,2]
[325418208,1714857043171,-565.203952,0.00022059,2]
[325418209,1714857043181,-565.203952,0.00022059,2]
[325418210,1714857043191,-151.0,0.00022059,2]
[325418211,1714857043200,-151.0,0.00022059,2]
[325418212,1714857043209,-151.0,0.00022059,2]
[325418213,1714857043218,-151.0,0.00022059,2]
[325418214,1714857043228,-151.0,0.00022059,2]
[325418215,1714857043239,-151.0,0.00022059,2]
[325418216,1714857043249,-151.0,0.00022059,2]
[325418217,1714857043259,-151.0,0.00022059,2]
[325418218,1714857043268,-151.0,0.00022059,2]
[325418219,1714857043278,-151.0,0.00022059,2]
[325418220,1714857043288,-151.0,0.00022059,2]
[325418221,1714857043297,-151.0,0.00022059,2]
[325418222,1714857043306,-151.0,0.00022059,2]
[325418223,1714857043315,-151.0,0.00022059,2]
[325418224,1714857043325,-151.0,0.00022059,2]
[325418225,1714857043334,-533.630374,0.00022059,2]
[325418226,1714857043343,-533.630374,0.00022059,2]
[325418227,1714857043352,-236.963768,0.00022059,2]
[325418228,1714857043362,-166.891245,0.00022059,2]
[325418229,1714857043371,-236.963768,0.00022059,2]
[325418230,1714857043380,-166.891245,0.00022059,2]
[325418231,1714857043389,-151.0,0.00022059,2]
[325418232,1714857043399,-151.0,0.00022059,2]
[325418233,1714857043409,-1136.40713,0.00022059,2]
[325418234,1714857043419,-1136.40713,0.00022059,2]
[325418235,1714857043429,-1136.40713,0.00022059,2]
[325418236,1714857043439,-1136.40713,0.00022059,2]
[325418237,1714857043450,-151.0,0.00022059,2]
[325418238,1714857043459,-151.0,0.00022059,2]
[325418239,1714857043470,-151.0,0.00022059,2]
[325418240,1714857043480,-151.0,0.00022059,2]
[325418241,1714857043490,-151.0,0.00022059,2]
[325418242,1714857043500,-151.0,0.00022059,2]
[325418243,1714857043510,-151.0,0.00022059,2]
[325418244,1714857043519,-151.0,0.00022059,2]
[325418245,1714857043528,-151.0,0.00022059,2]
[325418246,1714857043538,-151.0,0.00022059,2]
[325418247,1714857043547,-292.993347,0.00022059,2]
[325418248,1714857043557,-240.788718,0.00022059,2]
[325418249,1714857043569,-240.788718,0.00022059,2]
[325418250,1714857043579,-240.788718,0.00022059,2]
[325418251,1714857043588,-240.788718,0.00022059,2]
[325418252,1714857043597,-205.890707,0.00022059,2]
[325418253,1714857043608,-205.890707,0.00022059,2]
[325418254,1714857043617,-205.890707,0.00022059,2]
[325418255,1714857043626,-205.890707,0.00022059,2]
[325418256,1714857043636,-151.0,0.00022059,2]
[325418257,1714857043645,-151.0,0.00022059,2]
[325418258,1714857043655,-186.131287,0.00022059,2]
[325418259,1714857043665,-167.50457,0.00022059,2]
[325418260,1714857043675,-186.131287,0.00022059,2]
[325418261,1714857043685,-167.50457,0.00022059,2]
[325418262,1714857043694,-186.131287,0.00022059,2]
[325418263,1714857043704,-167.50457,0.00022059,2]
[325418264,1714857043713,-186.131287,0.00022059,2]
[325418265,1714857043723,-167.50457,0.00022059,2]
[325418266,1714857043733,-167.504569,0.00022059,2]
[325418267,1714857043742,-186.131287,0.00022059,2]
[325418268,1714857043752,-637.75143324,0.00022141,2]
[325418269,1714857043762,-153.0,0.00022164,2]
[325418270,1714857043772,-204.0615346,0.00022164,2]
[325418271,1714857043781,-153.0,0.00022164,2]
[325418272,1714857043790,-153.0,0.00022164,2]
[325418273,1714857043800,-153.0,0.00022164,2]
[325418274,1714857043810,-153.0,0.00022164,2]
[325418275,1714857043820,-153.0,0.00022164,2]
[325418276,1714857043829,-204.0615346,0.00022164,2]
[325418277,1714857043840,-153.0,0.00022164,2]
[325418278,1714857043858,-153.0,0.00022164,2]
[325418279,1714857043875,-306.0,0.00022164,2]
[325418280,1714857043893,-204.0615346,0.00022164,2]
[325418281,1714857043903,-165.9957168,0.00022198,2]
[325418282,1714857043913,-565.203952,0.00022198,2]
[325418283,1714857043923,-565.203952,0.00022198,2]
[325418284,1714857043932,-637.75143324,0.00022225,2]
[325418285,1714857043942,-154.96928135,0.00022273,2]
[325418286,1714857043952,-151.0,0.00022273,2]
[325418287,1714857043961,-151.0,0.00022273,2]
[325418288,1714857043971,-151.0,0.00022297,2]
[325418289,1714857043980,-151.0,0.00022297,2]
[325418290,1714857043989,-151.0,0.00022297,2]
[325418291,1714857044000,-151.0,0.00022297,2]
[325418292,1714857044009,-151.0,0.00022297,2]
[325418293,1714857044019,-297.695404,0.00022297,2]
[325418294,1714857044029,-151.0,0.00022297,2]
[325418295,1714857044038,-151.0,0.00022297,2]
[325418296,1714857044048,-151.0,0.00022297,2]
[325418297,1714857044057,-533.630374,0.00022297,2]
[325418298,1714857044066,-533.630374,0.00022297,2]
[325418299,1714857044076,-236.963768,0.00022297,2]
[325418300,1714857044085,-166.891245,0.00022297,2]
[325418301,1714857044094,-236.963768,0.00022297,2]
[325418302,1714857044103,-166.891245,0.00022297,2]
[325418303,1714857044112,-151.0,0.00022297,2]
[325418304,1714857044122,-1136.40713,0.00022297,2]
[325418305,1714857044132,-1136.40713,0.00022297,2]
[325418306,1714857044141,-151.0,0.00022297,2]
[325418307,1714857044152,-151.0,0.00022297,2]
[325418308,1714857044163,-240.788718,0.00022297,2]
[325418309,1714857044173,-240.788718,0.00022297,2]
[325418310,1714857044182,-205.890707,0.00022297,2]
[325418311,1714857044191,-205.890707,0.00022297,2]
[325418312,1714857044201,-182.679602,0.00022297,2]
[325418313,1714857044211,-154.8915759,0.00022298,2]
[325418314,1714857044220,-151.0,0.00022298,2]
[325418315,1714857044231,-151.0,0.00022298,2]
[325418316,1714857044240,-151.0,0.00022298,2]
[325418317,1714857044250,-151.0,0.00022298,2]
[325418318,1714857044259,-151.0,0.00022298,2]
[325418319,1714857044269,-565.203952,0.00022298,2]
[325418320,1714857044278,-565.203952,0.00022298,2]
[325418321,1714857044287,-565.203952,0.00022298,2]
[325418322,1714857044296,-565.203952,0.00022298,2]
[325418323,1714857044306,-151.0,0.00022298,2]
[325418324,1714857044315,-151.0,0.00022298,2]
[325418325,1714857044324,-151.0,0.00022298,2]
[325418326,1714857044335,-151.0,0.00022298,2]
[325418327,1714857044344,-151.0,0.00022298,2]
[325418328,1714857044354,-151.0,0.00022298,2]
[325418329,1714857044363,-533.630374,0.00022298,2]
[325418330,1714857044372,-533.630374,0.00022298,2]
[325418331,1714857044382,-236.963768,0.00022298,2]
[325418332,1714857044391,-166.891245,0.00022298,2]
[325418333,1714857044400,-236.963768,0.00022298,2]
[325418334,1714857044410,-166.891245,0.00022298,2]
[325418335,1714857044420,-151.0,0.00022298,2]
[325418336,1714857044429,-1136.40713,0.00022298,2]
[325418337,1714857044439,-1136.40713,0.00022298,2]
[325418338,1714857044448,-151.0,0.00022298,2]
[325418339,1714857044457,-151.0,0.00022298,2]
[325418340,1714857044467,-151.0,0.00022298,2]
[325418341,1714857044476,-151.0,0.00022298,2]
[325418342,1714857044485,-151.0,0.00022298,2]
[325418343,1714857044496,-240.788718,0.00022298,2]
[325418344,1714857044505,-240.788718,0.00022298,2]
[325418345,1714857044514,-205.890707,0.00022298,2]
[325418346,1714857044524,-205.890707,0.00022298,2]
[325418347,1714857044534,-929.43126546,0.000223,2]
[325418348,1714857044543,-151.0,0.000223,2]
[325418349,1714857044553,-151.0,0.000223,2]
[325418350,1714857044562,-151.0,0.000223,2]
[325418351,1714857044572,-151.0,0.000223,2]
[325418352,1714857044582,-151.0,0.000223,2]
[325418353,1714857044591,-533.630374,0.000223,2]
[325418354,1714857044600,-533.630374,0.000223,2]
[325418355,1714857044610,-236.963768,0.000223,2]
[325418356,1714857044620,-166.891245,0.000223,2]
[325418357,1714857044629,-236.963768,0.000223,2]
[325418358,1714857044639,-166.891245,0.000223,2]
[325418359,1714857044648,-151.0,0.000223,2]
[325418360,1714857044659,-1136.40713,0.000223,2]
[325418361,1714857044668,-1136.40713,0.000223,2]
[325418362,1714857044678,-151.0,0.000223,2]
[325418363,1714857044687,-151.0,0.000223,2]
[325418364,1714857044697,-151.0,0.000223,2]
[325418365,1714857044707,-151.0,0.000223,2]
[325418366,1714857044716,-151.0,0.000223,2]
[325418367,1714857044726,-240.788718,0.000223,2]
[325418368,1714857044734,-240.788718,0.000223,2]
[325418369,1714857044744,-205.890707,0.000223,2]
[325418370,1714857044753,-205.890707,0.000223,2]
[325418371,1714857044763,-151.0,0.00022325,2]
[325418372,1714857044773,-158.80023,0.00022325,2]
[325418373,1714857044782,-195.203092,0.00022325,2]
[325418374,1714857044791,-565.203952,0.00022325,2]
[325418375,1714857044801,-565.203952,0.00022325,2]
[325418376,1714857044810,-565.203952,0.00022325,2]
[325418377,1714857044820,-565.203952,0.00022325,2]
[325418378,1714857044829,-151.0,0.00022325,2]
[325418379,1714857044839,-151.0,0.00022325,2]
[325418380,1714857044951,-151.0,0.00022325,2]
[325418381,1714857044961,-151.0,0.00022325,2]
[325418382,1714857044970,-151.0,0.00022325,2]
[325418383,1714857044981,-151.0,0.00022325,2]
[325418384,1714857044990,-151.0,0.00022325,2]
[325418385,1714857044999,-151.0,0.00022325,2]
[325418386,1714857045009,-151.0,0.00022325,2]
[325418387,1714857045018,-533.630374,0.00022325,2]
[325418388,1714857045028,-533.630374,0.00022325,2]
[325418389,1714857045037,-236.963768,0.00022325,2]
[325418390,1714857045047,-166.891245,0.00022325,2]
[325418391,1714857045056,-236.963768,0.00022325,2]
[325418392,1714857045065,-166.891245,0.00022325,2]
[325418393,1714857045075,-1136.40713,0.00022325,2]
[325418394,1714857045084,-1136.40713,0.00022325,2]
[325418395,1714857045093,-151.0,0.00022325,2]
[325418396,1714857045103,-151.0,0.00022325,2]
[325418397,1714857045113,-267.299872,0.00022325,2]
[325418398,1714857045122,-151.0,0.00022325,2]
[325418399,1714857045132,-151.0,0.00022325,2]
[325418400,1714857045141,-151.0,0.00022325,2]
[325418401,1714857045153,-151.0,0.00022325,2]
[325418402,1714857045164,-240.788718,0.00022325,2]
[325418403,1714857045173,-240.788718,0.00022325,2]
[325418404,1714857045182,-240.788718,0.00022325,2]
[325418405,1714857045192,-240.788718,0.00022325,2]
[325418406,1714857045202,-205.890707,0.00022325,2]
[325418407,1714857045211,-205.890707,0.00022325,2]
[325418408,1714857045220,-205.890707,0.00022325,2]
[325418409,1714857045231,-205.890707,0.00022325,2]
[325418410,1714857045241,-186.131287,0.00022325,2]
[325418412,1714857045250,-167.50457,0.00022325,2]
[325418414,1714857045259,-186.131287,0.00022325,2]
[325418416,1714857045269,-167.50457,0.00022325,2]
[325418418,1714857045278,-186.131287,0.00022325,2]
[325418420,1714857045287,-167.50457,0.00022325,2]
[325418422,1714857045297,-186.131287,0.00022325,2]
[325418424,1714857045306,-167.50457,0.00022325,2]
[325418425,1714857045315,-167.504569,0.00022325,2]
[325418426,1714857045324,-186.131287,0.00022325,2]
[325418427,1714857045334,-166.666666,0.00022431,2]
[325418428,1714857045344,-151.0,0.00022431,2]
[325418430,1714857045353,-365.00234951,0.00022431,2]
[325418464,1714857045929,-153.0,0.00022164,2]
[325418465,1714857045938,-153.0,0.00022164,2]
[325418466,1714857045948,-204.0615346,0.00022164,2]
[325418467,1714857045958,-153.0,0.00022164,2]
[325418468,1714857045967,-168.62802449,0.00022431,2]
[325418469,1714857045976,-533.630374,0.00022431,2]
[325418470,1714857045986,-236.963768,0.00022431,2]
[325418471,1714857045995,-166.891245,0.00022431,2]
[325418472,1714857046004,-236.963768,0.00022431,2]
[325418473,1714857046014,-166.891245,0.00022431,2]
[325418474,1714857046023,-1136.40713,0.00022431,2]
[325418475,1714857046033,-1136.40713,0.00022431,2]
[325418476,1714857046042,-309.36580396,0.00022496,2]
[325418477,1714857046051,-275.363037,0.00022496,2]
[325418478,1714857046061,-565.203952,0.00022496,2]
[325418479,1714857046070,-565.203952,0.00022496,2]
[325418480,1714857046079,-151.0,0.00022496,2]
[325418481,1714857046089,-151.0,0.00022496,2]
[325418482,1714857046098,-151.0,0.00022496,2]
[325418483,1714857046107,-151.0,0.00022496,2]
[325418484,1714857046116,-151.0,0.00022496,2]
[325418485,1714857046125,-151.0,0.00022496,2]
[325418486,1714857046135,-151.0,0.00022496,2]
[325418487,1714857046144,-151.0,0.00022496,2]
[325418488,1714857046155,-240.788718,0.00022496,2]
[325418489,1714857046165,-240.788718,0.00022496,2]
[325418490,1714857046174,-205.890707,0.00022496,2]
[325418491,1714857046183,-205.890707,0.00022496,2]
[325418492,1714857046194,-816.25139438,0.00022497,2]
[325418493,1714857046203,-442.30480109,0.00022498,2]
[325418494,1714857046212,-154.95481595,0.00022499,2]
[325418495,1714857046221,-1000.0,0.000225,2]
[325418496,1714857046230,-565.203952,0.000225,2]
[325418497,1714857046241,-565.203952,0.000225,2]
[325418498,1714857046251,-151.0,0.000225,2]
[325418499,1714857046260,-151.0,0.000225,2]
[325418500,1714857046269,-151.0,0.000225,2]
[325418501,1714857046278,-533.630374,0.000225,2]
[325418502,1714857046287,-533.630374,0.000225,2]
[325418503,1714857046296,-236.963768,0.000225,2]
[325418504,1714857046305,-166.891245,0.000225,2]
[325418505,1714857046314,-236.963768,0.000225,2]
[325418506,1714857046324,-166.891245,0.000225,2]
[325418507,1714857046333,-1136.40713,0.000225,2]
[325418508,1714857046342,-1136.40713,0.000225,2]
[325418509,1714857046351,-211.965363,0.000225,2]
[325418510,1714857046360,-151.0,0.000225,2]
[325418511,1714857046370,-240.788718,0.000225,2]
[325418512,1714857046379,-240.788718,0.000225,2]
[325418513,1714857046496,-205.890707,0.000225,2]
[325418514,1714857046506,-205.890707,0.000225,2]
[325418515,1714857046515,-155.39710041,0.00022528,2]
[325418516,1714857046525,-283.87194505,0.00022529,2]
[325418517,1714857046534,-155.74378063,0.00022529,2]
[325418518,1714857046544,-227.52273626,0.0002253,2]
[325418519,1714857046553,-151.0,0.0002253,2]
[325418520,1714857046563,-301.58538325,0.0002253,2]
[325418521,1714857046572,-203.0,0.0002253,2]
[325418522,1714857046581,-533.630374,0.0002253,2]
[325418523,1714857046590,-533.630374,0.0002253,2]
[325418524,1714857046599,-236.963768,0.0002253,2]
[325418525,1714857046608,-166.891245,0.0002253,2]
[325418526,1714857046618,-236.963768,0.0002253,2]
[325418527,1714857046626,-166.891245,0.0002253,2]
[325418528,1714857046635,-1136.40713,0.0002253,2]
[325418529,1714857046645,-1136.40713,0.0002253,2]
[325418530,1714857046654,-9312.71761482,0.00022531,2]
[325418531,1714857046666,-714.14784375,0.00022531,2]
[325418532,1714857046681,-7328.88877275,0.00022531,2]
[325418533,1714857046691,-565.203952,0.00022531,2]
[325418534,1714857046700,-565.203952,0.00022531,2]
[325418535,1714857046710,-151.0,0.00022531,2]
[325418536,1714857046719,-160.261816,0.00022531,2]
[325418537,1714857046729,-533.630374,0.00022531,2]
[325418538,1714857046738,-533.630374,0.00022531,2]
[325418539,1714857046749,-236.963768,0.00022531,2]
[325418540,1714857046758,-166.891245,0.00022531,2]
[325418541,1714857046767,-236.963768,0.00022531,2]
[325418542,1714857046777,-166.891245,0.00022531,2]
[325418543,1714857046786,-943.27073325,0.00022531,2]
[325418544,1714857053954,1314.01181236,0.0001,2]
[325418546,1714857175712,942.1730376,0.00019778,2]
[325418547,1714857179318,1347.30375243,9.999e-05,2]
[325418548,1714857279655,200.0,0.0002,2]
[325418549,1714857392222,192.79432561,0.00019178,2]
[325418551,1714857507192,273.10152157,0.000165,2]
[325418552,1714857536557,24900.0,0.00019616,2]
[325418553,1714857566095,150.78889555,0.00024516,120]
[325418554,1714857577256,940.11007956,0.00015,2]
[325418555,1714857642830,550.42296487,9.999e-05,2]
[325418556,1714857769623,30822.19799636,0.0002,2]
[325418557,1714857973352,565.42105856,9.999e-05,2]
[325418558,1714858015194,1067.13962359,0.000189,2]
[325418559,1714858021386,521.49441262,9.999e-05,2]
[325418560,1714858022525,24900.0,0.00019667,2]
[325418561,1714858128039,150.77383924,0.00024481,120]
[325418562,1714858164694,1314.01181236,0.0001,2]
[325418563,1714858175458,1000.3187504,0.00019897,2]
[325418611,1714858232217,-2628.34812708,0.00020266,2]
[325418613,1714858232227,-5464.74132977,0.00020267,2]
[325418615,1714858232237,-2146.98179967,0.00020267,2]
[325418617,1714858232246,-940.11007956,0.00020268,2]
[325418619,1714858232255,-990.89702146,0.000205,2]
[325418621,1714858232264,-160.85712775,0.00020839,2]
[325418623,1714858232273,-67474.04238408,0.00020909,2]
[325418624,1714858232283,-922.19287277,0.0002091,2]
[325418626,1714858232292,-364.8760745,0.00020911,2]
[325418628,1714858232302,-1312.66910827,0.00020911,2]
[325418629,1714858232312,-162.37430927,0.00020912,2]
[325418630,1714858232321,-356.55693736,0.00020912,2]
[325418631,1714858232331,-208.39170862,0.00021678,2]
[325418632,1714858232340,-204.0615346,0.00021778,2]
[325418633,1714858232350,-153.0,0.00021778,2]
[325418634,1714858232359,-153.0,0.00021778,2]
[325418635,1714858232369,-204.0615346,0.00021778,2]
[325418636,1714858232378,-204.0615346,0.00021778,2]
[325418637,1714858232387,-204.0615346,0.000218,2]
[325418638,1714858232396,-204.0615346,0.000218,2]
[325418639,1714858232406,-160.85712775,0.00021817,2]
[325418640,1714858232415,-153.0,0.00021918,2]
[325418641,1714858232424,-166.666666,0.00021918,2]
[325418642,1714858232433,-10000.0,0.00021918,2]
[325418643,1714858232443,-150.0,0.00021947,2]
[325418644,1714858232452,-153.0,0.00021978,2]
[325418645,1714858232461,-204.0615346,0.00021978,2]
[325418646,1714858232470,-153.0,0.00021978,2]
[325418647,1714858232479,-153.0,0.00021978,2]
[325418648,1714858232488,-204.0615346,0.00021978,2]
[325418649,1714858232498,-153.0,0.00021978,2]
[325418650,1714858232507,-4332.19444031,0.00022,2]
[325418651,1714858232526,-667.80555969,0.00022,2]
[325418652,1714858232536,-151.0,0.00022,2]
[325418653,1714858232545,-159.34994831,0.00022163,2]
[325418654,1714858232555,-306.0,0.00022164,2]
[325418655,1714858232567,-306.0,0.00022164,2]
[325418656,1714858232576,-154.8206338,0.00022164,2]
[325418658,1714858232586,-306.0,0.00022164,2]
[325418660,1714858232595,-153.0,0.00022164,2]
[325418662,1714858232605,-153.0,0.00022164,2]
[325418664,1714858232615,-407.4898313,0.00022164,2]
[325418666,1714858232624,-153.0,0.00022164,2]
[325418669,1714858232633,-153.0,0.00022164,2]
[325418671,1714858232642,-153.0,0.00022164,2]
[325418672,1714858232652,-208.39170861,0.00022287,2]
[325418674,1714858232661,-166.666666,0.00022431,2]
[325418676,1714858232670,-160.0,0.000225,2]
[325418678,1714858232679,-200.7602676,0.00022685,2]
[325418680,1714858232689,-156.52059409,0.00022687,2]
[325418682,1714858232698,-588.0,0.000227,2]
[325418684,1714858232707,-160.85712775,0.00022795,2]
[325418687,1714858232718,-869.27334476,0.0002287,2]
[325418689,1714858232728,-228.0179255,0.00022882,2]
[325418691,1714858232737,-269.69442722,0.00022886,2]
[325418693,1714858232747,-163.75214682,0.00022888,2]
[325418695,1714858232756,-241.78775668,0.00022888,2]
[325418697,1714858232765,-184.23048193,0.00022888,2]
[325418699,1714858232775,-219.10303701,0.00022888,2]
[325418701,1714858232784,-1889.9939618,0.00022888,2]
[325418702,1714858232794,-235.52069519,0.00022888,2]
[325418705,1714858232804,-716.38767054,0.00022888,2]
[325418706,1714858232814,-891.44988474,0.00022889,2]
[325418708,1714858232824,-9582.40222559,0.0002289,2]
[325418711,1714858232835,-516.20767634,0.0002289,2]
[325418713,1714858232847,-1274.70376296,0.0002289,2]
[325418833,1714858238121,-155.74716156,0.00021816,2]
[325418834,1714858238130,-152.09080574,0.00021816,2]
[325418835,1714858238140,-15588.18742473,0.0002289,2]
[325418836,1714858238150,-470.68505052,0.00022895,2]
[325418837,1714858238159,-205.97228952,0.00022895,2]
[325418838,1714858238168,-155.09257999,0.00022895,2]
[325418839,1714858238177,-208.39170861,0.00022895,2]
[325418840,1714858238186,-1630.99465882,0.00022895,2]
[325418841,1714858238195,-1630.99465881,0.00022895,2]
[325418843,1714858238204,-1630.99465881,0.00022896,2]
[325418844,1714858238214,-242.63257134,0.00022896,2]
[325418845,1714858238223,-1630.99465881,0.00022896,2]
[325418846,1714858238232,-6117.89636851,0.00022897,3]
[325418848,1714858238242,-2000.0,0.00022897,2]
[325418850,1714858238251,-303.67284012,0.00022897,2]
[325418851,1714858238260,-702.24163653,0.00022897,2]
[325418852,1714858238270,-186.38755187,0.00022898,2]
[325418853,1714858238279,-500.0,0.000229,2]
[325418855,1714858238288,-2034.39105098,0.00022942,2]
[325418856,1714858238297,-166.666666,0.00022944,2]
[325418858,1714858238307,-153.0,0.00022986,2]
[325418861,1714858238316,-153.0,0.00022986,2]
[325418863,1714858238325,-153.0,0.00022986,2]
[325418865,1714858238334,-153.0,0.00022986,2]
[325418867,1714858238344,-306.0,0.00022986,2]
[325418868,1714858238353,-153.0,0.00022986,2]
[325418869,1714858238363,-155.27698082,0.00022992,2]
[325418870,1714858238372,-168.88983771,0.00022993,2]
[325418871,1714858238381,-154.92238737,0.00022993,2]
[325418872,1714858238390,-151.0,0.00022993,2]
[325418873,1714858238399,-151.0,0.00022993,2]
[325418874,1714858238408,-864.210914,0.00022993,2]
[325418875,1714858238418,-864.210914,0.00022993,2]
[325418876,1714858238428,-331.114936,0.00022993,2]
[325418877,1714858238437,-331.114936,0.00022993,2]
[325418878,1714858238447,-820.182786,0.00022993,2]
[325418879,1714858238456,-891.130822,0.00022993,2]
[325418880,1714858238465,-891.130822,0.00022993,2]
[325418881,1714858238475,-820.182786,0.00022993,2]
[325418882,1714858238484,-151.0,0.00022993,2]
[325418883,1714858238493,-377.790549,0.00022993,2]
[325418884,1714858238502,-151.0,0.00022993,2]
[325418885,1714858238512,-377.790549,0.00022993,2]
[325418886,1714858238525,-474.21464437,0.00022994,2]
[325418887,1714858238534,-301.48151811,0.00022994,2]
[325418888,1714858238543,-155.28802997,0.00022995,4]
[325418889,1714858238553,-302.92455934,0.00022995,2]
[325418890,1714858238563,-241.6470421,0.00022995,2]
[325418891,1714858238573,-682.9196759,0.00022995,2]
[325418892,1714858238582,-1712.22652709,0.00022995,2]
[325418893,1714858238591,-329.86863425,0.00022995,2]
[325418894,1714858238604,-1676.30195278,0.00022995,2]
[325418895,1714858238613,-267.39463091,0.00022995,2]
[325418896,1714858238622,-2588.41116025,0.00022995,2]
[325418897,1714858238631,-574.45001192,0.00022995,2]
[325418898,1714858238641,-15263.09179093,0.00022995,2]
[325418899,1714858238653,-2086.53808771,0.00022995,2]
[325418900,1714858238664,-1279.72643616,0.00022995,2]
[325418901,1714858238675,-1368.95389824,0.00022995,2]
[325418902,1714858238684,-193.33513007,0.00022995,2]
[325418903,1714858238693,-219.21186991,0.00022995,2]
[325418904,1714858238703,-185.81629862,0.00022995,2]
[325418905,1714858238713,-155.44708054,0.00022995,2]
[325418906,1714858238722,-189.03393795,0.00022995,2]
[325418907,1714858238731,-191.38112735,0.00022995,2]
[325418908,1714858238741,-151.0,0.00022995,2]
[325418909,1714858238750,-151.0,0.00022995,2]
[325418910,1714858238760,-151.0,0.00022995,2]
[325418911,1714858238769,-864.210914,0.00022995,2]